Cogmind - Beta 12 @@@ ROGUE MODE // 2023.03.05 @ 20:37:40 Player: ER Result: Self-destructed Performance ------------- Evolutions (2) 1000 Regions Visited (4) 800 Robots Destroyed (40) 200 Value Destroyed (1013) 1013 Prototype IDs (2) 40 Alien Tech Used (0) 0 Bonus (-263) -263 TOTAL SCORE: 2790 Bonus ------- Follower Combat Kills 25 Friendly Fire -288 Cogmind --------- Core Integrity 58/550 Matter 300/300 Energy 100/100 System Corruption 0% Temperature Cool (9) Movement Core (50) Location -8/Materials Parts ------- > --- POWER (1) -------- (None) > --- PROPULSION (4) --- (None) > --- UTILITY (4) ------ System Shield > --- WEAPON (2) ------- (None) > --- INVENTORY (5) ---- Large Storage Unit Medium Matter Pod (100) Peak State ------------ > --- POWER ------------ Ion Engine > --- PROPULSION ------- Carbon-fiber Leg Carbon-fiber Leg Carbon-fiber Leg Carbon-fiber Leg > --- UTILITY ---------- System Shield System Shield System Shield System Shield > --- WEAPON ----------- Maul Scythe > --- INVENTORY -------- Large Storage Unit Medium Matter Pod EMP Blaster [Rating: 30] Favorites ----------- Power Heavy Ion Engine Engine Heavy Ion Engine Propulsion Aluminum Leg Leg Aluminum Leg Flight Unit Flight Unit Utility Heat Sink Device Heat Sink Storage High-capacity Battery Processor Signal Interpreter Hackware System Shield Protection Light Armor Plating Weapon Mining Laser Energy Gun Spread Laser Launcher EMP Blaster Special Weapon Mining Laser Impact Weapon Maul Slashing Weapon Scythe Build | -11 -10 -10 -9 -8 ------- Run | Jun Mat Min Mat Mat Slots Evolved 4 | . . . 2 2 Power . | . . . . . Propulsion 2 | . . . 2 . Utility 2 | . . . . 2 Weapon . | . . . . . Parts Attached 66 | 8 17 7 26 8 Power 7 | 2 2 . 2 1 Engine 7 | 2 2 . 2 1 Core . | . . . . . Reactor . | . . . . . Propulsion 22 | 2 4 2 14 . Treads . | . . . . . Leg 18 | 2 4 . 12 . Wheel . | . . . . . Hover . | . . . . . Flight 4 | . . 2 2 . Utility 13 | 2 2 2 4 3 Device 5 | 2 1 1 . 1 Storage 2 | . . 1 1 . Processor 1 | . 1 . . . Hackware 4 | . . . 2 2 Protection 1 | . . . 1 . Artifact . | . . . . . Weapon 24 | 2 9 3 6 4 Energy Gun 13 | 2 7 2 2 . Energy Cannon . | . . . . . Ballistic Gun . | . . . . . Ballistic Cannon . | . . . . . Launcher 2 | . . . . 2 Special Weapon 4 | . 2 1 1 . Impact Weapon 2 | . . . 2 . Slashing Weapon 3 | . . . 1 2 Piercing Weapon . | . . . . . Special Melee Weapon . | . . . . . Unidentified Prototypes 2 | . 1 1 . . Parts Lost 19 | . 1 2 4 12 Power 2 | . . . . 2 Propulsion 6 | . . 1 1 4 Utility 6 | . 1 . 2 3 Weapon 5 | . . 1 1 3 Highest Loss Streak 12 | . 1 1 2 12 To Critical Strikes . | . . . . . Average Slot Usage (%) 91 | . 97 97 79 90 Engine 10 | . 13 13 7 6 Leg 26 | . 26 25 23 32 Flight 3 | . . 1 11 . Device 15 | . 27 14 9 3 Storage 4 | . . 13 2 . Hackware 4 | . . . 1 30 Energy Gun 9 | . 27 2 4 . Special Weapon 9 | . . 25 5 . Impact Weapon 4 | . . . 11 8 Slashing Weapon 1 | . . . . 8 Naked Turns . | . . . . . Heaviest Build 35 | 9 16 20 35 12 Greatest Support 60 | 20 20 20 60 60 Greatest Overweight (x) 6 | . 1 6 3 . Average Overweight (x) . | . . . . . Largest Inventory Capacity 15 | 5 5 5 15 5 Average Capacity 5 | 5 5 5 7 5 Most Carried 9 | 2 5 5 9 4 Average Carried 3 | . 4 4 5 2 Final Capacity 5 | 5 5 5 5 5 Final Carried 5 | 1 5 4 5 2 Class Distribution -------------------- 82% | Mutant 11% | Hacker-Mutant 5% | Scavenger-Mutant Dominant Class ---------------- Mutant | -10/Materials Mutant | -10/Mines Mutant | -9/Materials Hacker-Mutant | -8/Materials Resources | -11 -10 -10 -9 -8 ----------- Run | Jun Mat Min Mat Mat Matter Collected 919 | 280 137 110 184 208 Remotely . | . . . . . Salvage Created 1050 | 99 214 55 495 187 Parts 67 | 13 14 11 19 10 Haulers Intercepted . | . . . . . Recyclers Shooed 3 | . 1 2 . . Parts Field Recycled . | . . . . . Retrieved Matter . | . . . . . Parts Self-Destructed . | . . . . . Prevented . | . . . . . Kills | -11 -10 -10 -9 -8 ------- Run | Jun Mat Min Mat Mat Combat Hostiles Destroyed 29 | 1 8 3 13 4 Melee 7 | . . . 5 2 Guns 15 | 1 7 3 4 . Cannons 1 | . . . 1 . AOE 1 | . 1 . . . Classes Destroyed 10 | 2 1 1 3 3 Worker 2 | . . 2 . . Builder 3 | . . . . 3 Tunneler 4 | 3 . 1 . . Mechanic 1 | . . . 1 . Operator 1 | . . . . 1 Drone 1 | . . . 1 . Swarmer 9 | . 3 3 2 1 Grunt 16 | 1 5 . 8 2 Sentry 3 | . . . 3 . Hunter 1 | . . . . 1 Best Kill Streak 3 | 2 3 3 3 3 Combat Bots Only 3 | 1 3 3 3 2 Max Kills in Single Turn 1 | 1 1 1 1 1 Gunslinging . | . . . . . Exploded 1 | . 1 . . . Melee 1 | . . . 1 1 Uniques/NPCs Destroyed . | . . . . . Combat | -11 -10 -10 -9 -8 -------- Run | Jun Mat Min Mat Mat Damage Taken 3075 | 58 361 514 803 1339 Core 866 | 12 59 137 166 492 Absorbed by Shields . | . . . . . Regen/Repaired (Parts) 75 | . 75 . . . Core Remaining (%) 56 | 95 . 16 58 . Volleys Fired 99 | 12 22 40 23 2 Largest 2 | 2 2 2 2 1 Hottest 200 | 80 130 200 145 33 Shots Fired 160 | 24 36 73 25 2 Gun 90 | 24 36 8 22 . Cannon . | . . . . . Launcher 2 | . . . . 2 Special 68 | . . 65 3 . Kinetic . | . . . . . Thermal 119 | 24 27 65 3 . Explosive . | . . . . . Electromagnetic 41 | . 9 8 22 2 Robot Hit Streak 9 | 5 6 4 8 9 Robot Miss Streak 8 | 3 8 4 5 . Penetration Max . | . . . . . Secondary Targets . | . . . . . Shots Hit Robots 117 | 13 28 17 41 18 Core Hits 66 | 5 32 8 13 8 Critical Kills 2 | . . . 2 . Critical Parts Destroyed 4 | . . . 4 . Critical Strikes 8 | . . . 6 2 Smash 6 | . . . 6 . Sever 2 | . . . . 2 Melee Attacks 78 | . . . 45 33 Impact 67 | . . . 45 22 Slashing 11 | . . . . 11 Piercing . | . . . . . Sneak Attacks 6 | . . . 3 3 Combat Hostiles . | . . . . . Follow-up Attacks 5 | . . . 3 2 Damage Inflicted 3011 | 137 414 359 1300 801 Guns 758 | 137 364 47 210 . Cannons . | . . . . . Explosions 132 | . 46 . . 86 Melee 1757 | . . . 1042 715 Ramming 4 | . 4 . . . Kinetic . | . . . . . Thermal 819 | 137 322 312 48 . Explosive . | . . . . . Electromagnetic 431 | . 88 47 210 86 Impact 1540 | . . . 1042 498 Slashing 217 | . . . . 217 Piercing . | . . . . . Highest Corruption 5 | . . 5 . . Average Corruption 5 | . . 5 . . Corruption Purged . | . . . . . Corruption Blocked . | . . . . . Effects 3 | . . 3 . . Message Errors 1 | . . 1 . . Matter Fused 1 | . . 1 . . Energy Discharges 1 | . . 1 . . Overload Shots . | . . . . . Overflow Damage 484 | . . 8 326 150 Projectiles 8 | . . 8 . . Explosions . | . . . . . Melee 476 | . . . 326 150 Knockbacks 8 | . . . 5 3 Impact 8 | . . . 5 3 Kinetic . | . . . . . Secondary . | . . . . . Self-Inflicted Damage 26 | . 26 . . . Shots 1 | . 1 . . . Rammed . | . . . . . Targets Rammed 1 | . 1 . . . Kicked 1 | . 1 . . . Crushed . | . . . . . Highest Temperature 207 | 84 200 207 27 7 Average Temperature 68 | 43 65 96 10 4 Received Heat Transfer 1170 | 30 195 . 324 621 Siege Activations . | . . . . . Robots Corrupted 1 | . . . 1 . Combat Hostiles 1 | . . . 1 . Parts Fried 8 | . . . 3 5 Impact Corruptions 21 | . . . 13 8 Robots Melted . | . . . . . Combat Hostiles . | . . . . . Parts Melted 1 | . . 1 . . Heat Transferred 1480 | 325 405 650 100 . Parts Sabotaged . | . . . . . Parts Stolen . | . . . . . Parts Stripped . | . . . . . Power Chain Reactions 2 | . 1 . . 1 Missiles Intercepted . | . . . . . Alert | -11 -10 -10 -9 -8 ------- Run | Jun Mat Min Mat Mat Peak Influence 394 | 35 130 102 394 169 Initial 154 | . 22 50 24 154 Average 95 | 20 59 57 230 62 Maximum Alert Level 1 | . . . 1 . Low Security (%) 84 | 100 100 100 35 100 Level 1 15 | . . . 64 . Level 2 . | . . . . . Level 3 . | . . . . . Level 4 . | . . . . . Level 5 . | . . . . . High Security . | . . . . . Max Security . | . . . . . Squads Dispatched 5 | . 1 . 2 2 Investigation 3 | . 1 . 1 1 Extermination . | . . . . . Reinforcement 2 | . . . 1 1 Assault . | . . . . . Garrison . | . . . . . Intercept . | . . . . . Searches Triggered . | . . . . . Construction Impeded 1 | . . . . 1 Haulers Reinforced . | . . . . . Active Scanning Responses . | . . . . . Cargo Convoy Interrupts . | . . . . . Stealth | -11 -10 -10 -9 -8 --------- Run | Jun Mat Min Mat Mat Distress Signals 1 | . . . 1 . Communications Jammed . | . . . . . Distress Signals . | . . . . . Times Spotted 53 | 1 10 3 25 14 Peak Tracking Total 8 | 1 3 3 7 8 Tactical Retreats 5 | . 1 . 3 1 Traps | -11 -10 -10 -9 -8 ------- Run | Jun Mat Min Mat Mat Traps Triggered 2 | . 2 . . . Indirectly . | . . . . . Trap Hack Attempts . | . . . . . Triggered . | . . . . . Disarmed . | . . . . . Reprogrammed . | . . . . . Reused . | . . . . . Traps Extracted . | . . . . . Installed . | . . . . . Triggered . | . . . . . Machines | -11 -10 -10 -9 -8 ---------- Run | Jun Mat Min Mat Mat Machines Disabled 5 | . 1 1 2 1 Max in Single Turn 1 | . 1 1 1 1 Machines Repaired . | . . . . . Machines Sabotaged . | . . . . . Overloaded Fab Kills . | . . . . . Hacking | -11 -10 -10 -9 -8 --------- Run | Jun Mat Min Mat Mat Machines Accessed 7 | . 3 1 2 1 Terminals 5 | . 2 . 2 1 Fabricators . | . . . . . Repair Stations 1 | . 1 . . . Recycling Units . | . . . . . Scanalyzers . | . . . . . Garrison Access . | . . . . . Total Hacks 26 | . 7 1 5 13 Successful 11 | . 3 1 3 4 Failed 15 | . 4 . 2 9 Catastrophic 3 | . 1 . . 2 Database Lockouts . | . . . . . Manual 2 | . 1 1 . . Terminals 23 | . 5 . 5 13 Fabricators . | . . . . . Repair Stations 2 | . 2 . . . Recycling Units . | . . . . . Scanalyzers . | . . . . . Garrison Access . | . . . . . Terminal Hacks 9 | . 1 1 3 4 Record 6 | . 1 . 2 3 Open Door 1 | . . 1 . . Unreport Threat 1 | . . . . 1 Locate Traps 1 | . . . 1 . Fabricator Hacks . | . . . . . Repair Station Hacks 2 | . 2 . . . Scan Component 1 | . 1 . . . Repair 1 | . 1 . . . Recycling Unit Hacks . | . . . . . Scanalyzer . | . . . . . Garrison Access Hacks . | . . . . . Unauthorized Hacks . | . . . . . Terminals . | . . . . . Fabricators . | . . . . . Repair Stations . | . . . . . Recycling Units . | . . . . . Scanalyzers . | . . . . . Garrison Access . | . . . . . Data Cores Recovered . | . . . . . Used . | . . . . . Hacking Detections 5 | . 2 . 2 1 Full Trace Events 3 | . . . 2 1 Feedback Events . | . . . . . Feedback Blocked . | . . . . . Robot Schematics Acquired . | . . . . . Robots Built . | . . . . . Authchips . | . . . . . Time . | . . . . . Total Robot Build Rating . | . . . . . Part Schematics Acquired . | . . . . . Parts Built . | . . . . . Authchips . | . . . . . Time . | . . . . . Total Part Build Rating . | . . . . . Parts Repaired 1 | . 1 . . . Time 26 | . 26 . . . Parts Recycled . | . . . . . Recycled Matter . | . . . . . Retrieved Matter . | . . . . . Retrieved Components . | . . . . . Parts Scanalyzed . | . . . . . Part Schematics Acquired . | . . . . . Parts Damaged . | . . . . . Bothacking | -11 -10 -10 -9 -8 ------------ Run | Jun Mat Min Mat Mat Used RIF Installer . | . . . . . Robots Hacked . | . . . . . Non-combat . | . . . . . Combat . | . . . . . Robot Hacks Applied . | . . . . . Relay Couplers Released . | . . . . . Fabnet Peak Effective % . | . . . . . Robots Rewired . | . . . . . Allies Hacked . | . . . . . Hacks Repelled . | . . . . . Allies | -11 -10 -10 -9 -8 -------- Run | Jun Mat Min Mat Mat Total Allies . | . . . . . Largest Group . | . . . . . Highest-Rated Group . | . . . . . Highest-Rated Ally . | . . . . . Total Orders 5 | . . . 5 . FOLLOW 1 | . . . 1 . EXPLORE 3 | . . . 3 . RETURN 1 | . . . 1 . Ally Attacks 41 | . . . 41 . Total Damage 210 | . . . 210 . Kills 1 | . . . 1 . Allies Corrupted 1 | . . . 1 . Allies Melted . | . . . . . Intel | -11 -10 -10 -9 -8 ------- Run | Jun Mat Min Mat Mat Robot Analysis Total . | . . . . . Derelict Logs Recovered . | . . . . . Drone Launches 12 | . . . 12 . Drone Recoveries 11 | . . . 11 . Exploration | -11 -10 -10 -9 -8 ------------- Run | Jun Mat Min Mat Mat Turns Passed 2374 | 365 566 623 584 236 Spaces Moved 1301 | 161 339 313 399 89 Core 22 | 18 . 3 1 . Treads . | . . . . . Legs 984 | 143 339 274 139 89 Wheels . | . . . . . Hover . | . . . . . Flight 295 | . . 36 259 . Fastest Speed 34 | 50 120 37 34 120 Average Speed 102 | 112 124 113 66 120 Slowest Speed 360 | 120 190 360 200 120 Overloaded Moves . | . . . . . Propulsion Burnouts . | . . . . . Robots Hopped 1 | . . . 1 . Cave-ins Triggered 1 | . . 1 . . Exploration Rate (%) 29 | 13 37 59 32 6 Regions Visited 4 Branch Regions 1 Pre-discovered Areas . | . . . . . Known Exits Taken 1 | . 1 . . . Unknown Exits Taken 3 | 1 . 1 1 . Scrap Searched . | . . . . . Spaces Dug 33 | . . 19 7 7 Terrain Destroyed 51 | . 3 30 8 10 Melee 14 | . . . 7 7 Projectile 31 | . . 30 1 . AOE 6 | . 3 . . 3 Terrain Rammed . | . . . . . Walls Destroyed . | . . . . . Machines Disabled . | . . . . . Actions | -11 -10 -10 -9 -8 --------- Run | Jun Mat Min Mat Mat Total 1917 | 321 445 379 612 160 Wait 307 | 133 44 5 98 27 Move 1295 | 160 338 312 396 89 Hop 1 | . . . 1 . Pick Up 43 | 8 13 7 12 3 Fast Attach 7 | . 3 . 4 . Attach 32 | 7 5 5 10 5 Detach 1 | . 1 . . . Swap 27 | 1 9 2 12 3 Drop 37 | . 9 8 18 2 Fire 99 | 12 22 40 23 2 Melee 67 | . . . 38 29 Ram . | . . . . . Kick 1 | . 1 . . . Crush . | . . . . . Escape Stasis . | . . . . . Rewire . | . . . . . Trap . | . . . . . Miscellaneous . | . . . . . Route ------- -11/Junkyard -10/Materials -10/Mines (discovered 2 exits: *Mat x2) -9/Materials -8/Materials History --------- Turn | Location | Event 2 | -11/Junkyard | Met Revision 17 68 | -11/Junkyard | Discovered new exit (range 8) 366 | -11/Junkyard | Entered Materials 367 | -10/Materials | Build established: Mutant 765 | -10/Materials | Repaired Aluminum Leg 899 | -10/Materials | Discovered new exit (range 7) 919 | -10/Materials | Identified exit to Mines 932 | -10/Materials | Entered Mines 944 | -10/Mines | Met a Derelict bent on vengeance 966 | -10/Mines | Discovered new exit (range 12) 1356 | -10/Mines | Found the Drone Emporium 1368 | -10/Mines | Found Prototype Device 1369 | -10/Mines | Identified Thief Drone Bay 1436 | -10/Mines | Crushed by falling debris 1436 | -10/Mines | Core integrity fell below 50% 1496 | -10/Mines | Core integrity fell below 20% 1552 | -10/Mines | Discovered new exit (range 11) 1555 | -10/Mines | Entered Materials 1555 | -9/Materials | Evolved 2 slots: Propulsion x2 2007 | -9/Materials | Discovered new exit (range 24) 2139 | -9/Materials | Entered another Materials area 2139 | -8/Materials | Evolved 2 slots: Utility x2 2362 | -8/Materials | Core integrity fell below 50% 2373 | -8/Materials | Core integrity fell below 20% 2375 | -8/Materials | Self-destructed Last Messages --------------- 02355_ S-10 Pest destroyed. 02355_ G-47 Trooper misfires. 02357_ Carbon-fiber Leg destroyed. 02358_ Maul destroyed. 02358_ Acquired Lgt. Ion Engine. 02359_ System Shield destroyed. 02360_ Carbon-fiber Leg destroyed. 02361_ U-05 Engineer lays Concrete. 02363_ G-47 Trooper Lgt. Nuclear Core severed. 02363_ U-05 Engineer repairs door. 02364_ Lgt. Ion Engine destroyed. 02364_ Critical hit (Burn: +37). 02364_ G-47 Trooper suffers critical hit (Burn). 02364_ G-47 Trooper destroyed. 02365_ Acquired 35 matter. 02365_ G-47 Trooper Aluminum Leg severed. 02370_ L-31 Rogue reactivates. 02371_ System Shield destroyed. 02373_ G-47 Trooper destroyed. 02373_ Scythe destroyed. Map ----- +----------------------------------------------------+ | | | | | | | | | | | ?????????????????????????????????????????????????? | | ?????????????????????????????????????????????????? | | ?????????????????????????????????????????????????? | | ?????????????????????????????????????????????????? | | ?????????????????????????????????????????????????? | | ?????????????????????????????????###?????????????? | | ?????????????????????? ?????????? ##?????????????? | | ?????????????????????? ?????????? ##?????????????? | | ?????????????????????? ?????????? ##?????????????? | | ?????????????????????? ????????? ##?????????????? | | ?????????????????????? ????????? #######????????? | | ?????????????????????? ????????? ###############? | | ????????????????????## ##?????"" ## ##########? | | ????????????????????## ##??? """ !## # =""" ##? | | ????????????????????## ##??? ## !#*! """ ##? | | ?????????????# ??## ##????""" ## %+| """ ##? | | ?????????????#####??## ##????""" ## =# ##? | | ?????????????## ??## ##?????"" ## #! ! ##? | | ????????????? # ] ""## ##### ## ##########? | | ????????????? + T"## ########+### #########? | | ????????????? # # %l@ "" ##???????? | | ????????????? # + g%%%au T ##???????? | | ????????????? #! # gs[! ##???????? | | ????????????? # ?? ## ############ ####?????? | | ????????????? / ??? ## ############## ######?????? | | ????????????????????## ##???????## ##?????? | | ????????????????????## ##???????## ##?????? | | ????????????????????## ##???????## ##?????? | | ????????????????????## ##???????## ##?????? | | ????????????????????## ##???????## #######?????? | | ???????????????????? ##???????############?????? | | ????????????????????## ##???????######???????????? | | ????????????????????## ??????????????????????????? | | ?????????????????????? ??????????????????????????? | | ?????????????????????? ??????????????????????????? | | ?????????????????????? ??????????????????????????? | | ?????????????????????? ??????????????????????????? | | ?????????????????????? ??????????????????????????? | | ?????????????????????????????????????????????????? | | ?????????????????????????????????????????????????? | | ?????????????????????????????????????????????????? | | ?????????????????????????????????????????????????? | | ?????????????????????????????????????????????????? | | ?????????????????????????????????????????????????? | | ?????????????????????????????????????????????????? | +----------------------------------------------------+ Best States ------------- Heat Dissipation 35 Energy Generation 14 Energy Capacity 530 Matter Stores 300 Matter Capacity 300 Sight Range 16 Terrain Scan Range 16 Terrain Scan Density 10 Armor Coverage 150 Evasion (%) 63 Defensive Hacking 40 Item Schematics ----------------- None Robot Schematics ------------------ None Fabricated ------------ Nothing Alien Tech Used ----------------- None Achievements -------------- Backstab Everything Is Under Control One Hack Too Far Part-time Mechanic Power Corrupts Risk Taker Challenges ------------ None Game ------ Seed FrostDisruptorFacilitator Manual? 0 Play Time 02:07:15 Cumulative 5.3 hours Start 2023.03.05 @ 17:55:53 End 2023.03.05 @ 20:37:40 Sessions 1 Manual Loads 0 Difficulty Rogue Special Mode None Game No. 3 Rogue 3 Adventurer 0 Explorer 0 Win Type - Total 0 Types 0/0/0/0/0/0/0/0/0 Lore% 1 Gallery% 3 Achievement% 4 Wizard Run 0 Options --------- ASCII 0 Keyboard 0 Movement Mouse Keybinds 0 Fullscreen 1 Font 18/SmallcapsGlow Map View 76x50 Tactical HUD 1 Map Filters NONE Filters NONE Steam 1 RUN: 22255612-4058-44cd-a27a-03f61b921109